Cogmind - Beta 15 @@@ ROGUE MODE // 2025.10.06 @ 13:03:19 Player: Dare Evans Result: Destroyed by G-34 Mercenary with Small Laser Performance ------------- Evolutions (0) 0 Regions Visited (2) 400 Robots Destroyed (11) 55 Value Destroyed (306) 306 Prototype IDs (3) 60 Alien Tech Used (0) 0 Bonus (0) 0 TOTAL SCORE: 821 Bonus ------- None Cogmind --------- Core Integrity 0/250 Matter 213/300 Energy 27/100 System Corruption 1% Temperature Cool (6) Movement Walking (180) Ox1 Location -10/Mines Parts ------- > --- POWER (1) -------- (None) > --- PROPULSION (2) --- VSS Leg > --- UTILITY (2) ------ Medium Storage Unit > --- WEAPON (2) ------- Improved Assault Rifle EMP Blaster > --- INVENTORY (10) --- Aluminum Leg Aluminum Leg Aluminum Leg Aluminum Leg Carbon-fiber Leg Small Laser Improved Assault Rifle Improved Datajack Peak State ------------ > --- POWER ------------ Ion Engine > --- PROPULSION ------- Carbon-fiber Leg VSS Leg > --- UTILITY ---------- Medium Storage Unit Seismic Detector > --- WEAPON ----------- Improved Assault Rifle Improved Assault Rifle > --- INVENTORY -------- Light Ion Engine Aluminum Leg Aluminum Leg Aluminum Leg Aluminum Leg Aluminum Leg Small Laser Improved Assault Rifle EMP Blaster Datajack [Rating: 16] Favorites ----------- Power Ion Engine Engine Ion Engine Propulsion Light Treads Treads Light Treads Leg Titanium Leg Utility Seismic Detector Device Seismic Detector Storage Medium Storage Unit Weapon Medium Laser Energy Gun Medium Laser Ballistic Gun Assault Rifle Launcher EMP Blaster Special Melee Weapon Datajack Build | -11 -10 -10 ------- Run | Yrd Mat Min Slots Evolved . | . . . Power . | . . . Propulsion . | . . . Utility . | . . . Weapon . | . . . Parts Attached 20 | 9 7 4 Power 3 | 2 1 . Engine 3 | 2 1 . Core . | . . . Reactor . | . . . Propulsion 5 | 2 . 3 Treads 2 | 2 . . Leg 3 | . . 3 Wheel . | . . . Hover . | . . . Flight . | . . . Utility 4 | 3 1 . Device 2 | 2 . . Storage 2 | 1 1 . Processor . | . . . Hackware . | . . . Protection . | . . . Artifact . | . . . Weapon 8 | 2 5 1 Energy Gun 1 | 1 . . Energy Cannon . | . . . Ballistic Gun 5 | 1 4 . Ballistic Cannon . | . . . Launcher 1 | . . 1 Special Weapon . | . . . Impact Weapon . | . . . Slashing Weapon . | . . . Piercing Weapon . | . . . Special Melee Weapon 1 | . 1 . Unidentified Prototypes 1 | . 1 . Parts Lost 5 | . . 5 Power 2 | . . 2 Propulsion 1 | . . 1 Utility 1 | . . 1 Weapon 1 | . . 1 Highest Loss Streak 5 | . . 5 To Critical Strikes . | . . . Average Backups 6 | 3 6 9 Power 1 | . 1 . Propulsion 3 | 1 2 5 Utility . | . . . Weapon 1 | . 1 2 Tool/Special . | . . . Unused Backups 7 | . . 7 Power . | . . . Propulsion 5 | . . 5 Utility . | . . . Weapon 1 | . . 1 Tool/Special 1 | . . 1 Average Slot Usage (%) 98 | . 99 92 Engine 13 | . 14 11 Treads 24 | . 28 6 Leg 3 | . . 22 Device 20 | . 22 11 Storage 6 | . 5 14 Energy Gun 11 | . 13 . Ballistic Gun 14 | . 12 25 Special Melee Weapon 1 | . 2 . Peak Build Rating 16 | 9 12 16 Average Rating 8 | 6 8 14 On Entrance 7 | . 9 12 Naked Turns . | . . . Heaviest Build 22 | 14 22 22 Greatest Support 40 | 40 40 40 Greatest Overweight (x) 1 | . . 1 Average Overweight (x) . | . . . Largest Inventory Capacity 10 | 8 10 10 Average Capacity 7 | 7 6 10 Most Carried 10 | 5 10 10 Average Carried 6 | 3 6 9 Final Capacity 10 | 5 10 10 Final Carried 10 | 5 10 8 Class Distribution -------------------- 100% | Mutant Dominant Class ---------------- Mutant | -10/Materials Mutant | -10/Mines Resources | -11 -10 -10 ----------- Run | Yrd Mat Min Matter Collected 515 | 207 239 69 Remotely . | . . . Salvage Created 425 | 128 214 83 Parts 22 | 7 13 2 Haulers Intercepted . | . . . Recyclers Shooed . | . . . Parts Field Recycled . | . . . Retrieved Matter . | . . . Parts Self-Destructed . | . . . Prevented . | . . . Kills | -11 -10 -10 ------- Run | Yrd Mat Min Combat Hostiles Destroyed 7 | . 5 2 Guns 6 | . 5 1 AOE 1 | . . 1 Classes Destroyed 5 | 2 2 1 Tunneler 2 | 2 . . Recycler 1 | 1 . . Watcher 1 | . 1 . Grunt 6 | . 5 1 Demolisher 1 | . . 1 Best Kill Streak 2 | 2 2 1 Combat Bots Only 2 | . 2 1 Max Kills in Single Turn 1 | 1 1 1 Gunslinging . | . . . Exploded 1 | . . 1 Melee . | . . . Uniques/NPCs Destroyed . | . . . Combat | -11 -10 -10 -------- Run | Yrd Mat Min Hostile Shots Fired 63 | . 28 35 Missed 15 | . 10 5 Hits 48 | . 18 30 Projectile 48 | . 18 30 AOE 13 | . . 13 Damage Taken 1002 | . 222 780 Core 250 | . 50 200 Absorbed by Shields . | . . . Core Remaining (%) 100 | 100 . . Volleys Fired 37 | 7 19 11 Largest 2 | 2 2 2 Hottest 70 | 70 70 56 Shots Fired 74 | 14 38 22 Gun 72 | 14 38 20 Cannon . | . . . Launcher 2 | . . 2 Special . | . . . Kinetic 46 | 7 19 20 Thermal 26 | 7 19 . Explosive . | . . . Electromagnetic 2 | . . 2 Robot Hit Streak 13 | 7 10 13 Robot Miss Streak 2 | 1 2 1 Penetration Max . | . . . Secondary Targets 1 | . 1 . Max Gunslinging Chain 1 | . 1 . Shots Hit Robots 66 | 11 34 21 Core Hits 24 | 5 15 4 Critical Kills . | . . . Critical Parts Destroyed . | . . . Critical Strikes 2 | . 2 . Burn 2 | . 2 . Melee Attacks 13 | . 13 . Impact . | . . . Slashing . | . . . Piercing . | . . . Sneak Attacks 4 | . 4 . Combat Hostiles . | . . . Follow-up Attacks . | . . . Damage Inflicted 854 | 121 334 399 Guns 730 | 121 329 280 Cannons . | . . . Explosions 119 | . . 119 Melee . | . . . Ramming 5 | . 5 . Kinetic 463 | 44 139 280 Thermal 310 | 77 190 43 Explosive . | . . . Electromagnetic 76 | . . 76 Impact . | . . . Slashing . | . . . Piercing . | . . . Highest Corruption 1 | . . 1 Average Corruption 1 | . . 1 Corruption Purged . | . . . Corruption Blocked . | . . . Overload Shots . | . . . Overflow Damage 11 | . . 11 Projectiles . | . . . Explosions 11 | . . 11 Melee . | . . . Knockbacks . | . . . Impact . | . . . Kinetic . | . . . Secondary . | . . . Self-Inflicted Damage 59 | . . 59 Shots 3 | . . 3 Rammed 2 | . 2 . Targets Rammed 2 | . 2 . Kicked . | . . . Crushed . | . . . Highest Temperature 141 | 60 141 8 Average Temperature 43 | 28 55 2 Received Heat Transfer 246 | . 129 117 Siege Activations . | . . . Martial Activations . | . . . Shielding Activations . | . . . Robots Disrupted . | . . . Combat Hostiles . | . . . Robots Corrupted . | . . . Combat Hostiles . | . . . Parts Fried . | . . . Impact Corruptions . | . . . Robots Melted . | . . . Combat Hostiles . | . . . Parts Melted 1 | . 1 . Heat Transferred 1025 | 222 703 100 Parts Sabotaged . | . . . Parts Stolen . | . . . Parts Stripped . | . . . Power Chain Reactions 1 | . . 1 Alert | -11 -10 -10 ------- Run | Yrd Mat Min Maximum Alert Level . | . . . Low Security (%) 100 | 100 100 100 Level 1 . | . . . Level 2 . | . . . Level 3 . | . . . Level 4 . | . . . Level 5 . | . . . High Security . | . . . Max Security . | . . . Peak Influence 69 | 10 69 37 Initial . | . . . Average 13 | . 17 8 Influence Increases 259 | 15 167 77 Destroy 0b10 Robot/C 140 | . 100 40 Destroy 0b10 Robot/NC 20 | 15 5 . Destroy Leader 42 | . 22 20 Successful Hack 10 | . 10 . Destroy Structure 2 | . . 2 Lose Combat Pursuer 45 | . 30 15 Influence Decreases 232 | 15 167 50 Time Decay 212 | 15 167 30 Lost Part 20 | . . 20 Squads Dispatched 4 | . 3 1 Investigation 1 | . . 1 Extermination . | . . . Reinforcement 3 | . 3 . Assault . | . . . Garrison . | . . . Intercept . | . . . Searches Triggered . | . . . Construction Impeded . | . . . Haulers Reinforced . | . . . Active Scanning Responses . | . . . Cargo Convoy Interrupts . | . . . Stealth | -11 -10 -10 --------- Run | Yrd Mat Min Distress Signals 1 | . 1 . Communications Jammed . | . . . Distress Signals . | . . . Times Spotted 19 | . 13 6 Peak Tracking Total 3 | . 3 2 Tactical Retreats 2 | . 1 1 Traps | -11 -10 -10 ------- Run | Yrd Mat Min Traps Triggered 1 | . 1 . Indirectly . | . . . Trap Hack Attempts . | . . . Triggered . | . . . Disarmed . | . . . Reprogrammed . | . . . Reused . | . . . Traps Extracted . | . . . Installed . | . . . Triggered . | . . . Machines | -11 -10 -10 ---------- Run | Yrd Mat Min Machines Disabled . | . . . Max in Single Turn . | . . . Machines Repaired . | . . . Machines Dismantled . | . . . Machines Sabotaged . | . . . Overloaded Fab Kills . | . . . Hacking | -11 -10 -10 --------- Run | Yrd Mat Min Machines Accessed 4 | . 3 1 Terminals 3 | . 3 . Fabricators . | . . . Repair Stations . | . . . Recycling Units . | . . . Scanalyzers . | . . . Garrison Access . | . . . Total Hacks 8 | . 7 1 Successful 4 | . 3 1 Failed 4 | . 4 . Catastrophic 2 | . 2 . Database Lockouts . | . . . Manual 2 | . 2 . Terminals 7 | . 7 . Fabricators . | . . . Repair Stations . | . . . Recycling Units . | . . . Scanalyzers . | . . . Garrison Access . | . . . Terminal Hacks 4 | . 3 1 Robot Analysis 1 | . 1 . Prototype ID Bank 1 | . 1 . Open Door 1 | . . 1 Locate Traps 1 | . 1 . Fabricator Hacks . | . . . Repair Station Hacks . | . . . Recycling Unit Hacks . | . . . Scanalyzer . | . . . Garrison Access Hacks . | . . . Unauthorized Hacks . | . . . Terminals . | . . . Fabricators . | . . . Repair Stations . | . . . Recycling Units . | . . . Scanalyzers . | . . . Garrison Access . | . . . Data Cores Recovered . | . . . Used . | . . . Hacking Detections 2 | . 2 . Full Trace Events 1 | . 1 . Feedback Events . | . . . Feedback Blocked . | . . . Robot Schematics Acquired . | . . . Robots Built . | . . . Authchips . | . . . Time . | . . . Total Robot Build Rating . | . . . Part Schematics Acquired . | . . . Parts Built . | . . . Authchips . | . . . Time . | . . . Total Part Build Rating . | . . . Parts Repaired . | . . . Time . | . . . Parts Recycled . | . . . Recycled Matter . | . . . Retrieved Matter . | . . . Retrieved Components . | . . . Parts Scanalyzed . | . . . Part Schematics Acquired . | . . . Parts Damaged . | . . . Bothacking | -11 -10 -10 ------------ Run | Yrd Mat Min Used RIF Installer . | . . . Robots Hacked 4 | . 4 . Non-combat 4 | . 4 . Combat . | . . . Robot Hacks Applied 6 | . 6 . parse_system 3 | . 3 . no_distress 2 | . 2 . check_alert 1 | . 1 . Relay Couplers Released . | . . . Fabnet Peak Effective % . | . . . Robots Rewired . | . . . Allies Hacked . | . . . Hacks Repelled . | . . . Allies | -11 -10 -10 -------- Run | Yrd Mat Min Total Allies . | . . . Largest Group . | . . . Highest-Rated Group . | . . . Highest-Rated Ally . | . . . Total Orders . | . . . Ally Attacks . | . . . Total Damage . | . . . Kills . | . . . Allies Corrupted . | . . . Allies Melted . | . . . Intel | -11 -10 -10 ------- Run | Yrd Mat Min Active Infowar (turns) 812 | 55 653 104 Terrain 436 | 53 383 . Seismic 764 | 7 653 104 Robot Analysis Total 1 | . 1 . Derelict Logs Recovered . | . . . Drone Launches . | . . . Drone Recoveries . | . . . Exploration | -11 -10 -10 ------------- Run | Yrd Mat Min Turns Passed 903 | 119 653 131 Spaces Moved 414 | 50 311 53 Core 3 | 3 . . Treads 370 | 47 311 12 Legs 41 | . . 41 Wheels . | . . . Hover . | . . . Flight . | . . . Fastest Speed 50 | 50 160 105 Average Speed 154 | 153 160 126 Slowest Speed 180 | 160 160 180 Overloaded Moves . | . . . Propulsion Burnouts . | . . . Robots Hopped . | . . . Potential Cave-ins 2 | . . 2 Cave-ins Triggered . | . . . Exploration Rate (%) 25 | 4 53 18 Regions Visited 2 Branch Regions 1 Pre-discovered Areas . | . . . Known Exits Taken . | . . . Unknown Exits Taken 2 | 1 1 . Scrap Searched . | . . . Spaces Dug . | . . . Terrain Destroyed 6 | . . 6 Melee . | . . . Projectile . | . . . AOE 6 | . . 6 Terrain Rammed . | . . . Walls Destroyed . | . . . Machines Disabled . | . . . Actions | -11 -10 -10 --------- Run | Yrd Mat Min Total 591 | 75 420 96 Wait 73 | 4 48 21 Move 412 | 49 310 53 Hop . | . . . Pick Up 13 | 5 7 1 Fast Attach 13 | 6 5 2 Attach 4 | 1 1 2 Detach . | . . . Swap 13 | 3 8 2 Drop 11 | . 7 4 Fire 37 | 7 19 11 Melee 13 | . 13 . Ram . | . . . Kick . | . . . Crush 2 | . 2 . Escape Stasis . | . . . Rewire . | . . . Trap . | . . . Miscellaneous . | . . . Route ------- -11/Scrapyard -10/Materials (discovered 3 exits: [*Mat] / *Min x2) -10/Mines History --------- Turn | Location | Event 9 | -11/Scrapyard | Discovered new exit (range 15) 120 | -11/Scrapyard | Entered Materials 158 | -10/Materials | Discovered new exit (range 11) 311 | -10/Materials | Build established: Mutant 330 | -10/Materials | Discovered new exit (range 6) 620 | -10/Materials | Derelicts attacked the area 699 | -10/Materials | Discovered new exit (range 13) 773 | -10/Materials | Entered Mines 781 | -10/Mines | Met a Derelict shopkeep closing up shop 782 | -10/Mines | Assembled infested the area 787 | -10/Mines | Assisted by a Guerilla fighting off Assembled 874 | -10/Mines | Core integrity fell below 50% 889 | -10/Mines | Core integrity fell below 20% 904 | -10/Mines | Destroyed by G-34 Mercenary with Small Laser Last Messages --------------- 00877_ U-05 Engineer builds a Wall. 00877_ Seismic Detector destroyed. 00877_ D-53 Grenadier destroyed. 00879_ The unstable cave ceiling collapses. 00881_ U-05 Engineer builds a Wall. 00882_ The unstable cave ceiling collapses. [Achievement: Let's See Who's Tougher] 00885_ Chain reaction triggered in Lgt. Ion Engine. 00885_ Destroyed Shock Absorption System. 00885_ D-53 Grenadier destroyed. 00888_ The unstable cave ceiling collapses. 00890_ G-34 Mercenary IFF system glitched. 00890_ K-01 Serf collects debris. 00891_ U-05 Engineer lays Concrete. 00892_ The unstable cave ceiling collapses. 00892_ U-05 Engineer lays Concrete. 00893_ U-05 Engineer builds a Wall. 00893_ K-01 Serf collects debris. 00903_ Titanium Leg destroyed. Map ----- +----------------------------------------------------+ | ??????????????????#"!### #???????????? | | ??????????????????#"!= #X #???????????? | | ??????????????????#"/ = #???????????? | | ??????????????????#" #???????????? | | ??????????????????#"= !# #???????????? | | ??????????????????#"[### #??###??????? | | ??????????????????####?# #?# ##?????? | | ???????????????????????#### #### ####??? | | ??????????????????????????# #?# ???? | | ??????????????????????##### #? ??????? | | ????????????????????### ## ## #????????? | | ???????????????????## #?????????? | | ??????????????????## ## ###????????? | | ?????????????????## ### ## #????????? | | ?????????????????# # # # ###????????? | | ?????????????????## # #?????????? | | ?????????????????# # #?????????? | | ?????????????????## ###?????????? | | ??????????????????# #??????????? | | ??????????????????# =% #??????????? | | ??????????????????## ! #??????????? | | ???????????????????# #??????????? | | ???????????????????#### #??????????? | | ??????????????????#### ##??????????? | | ?????????????????## g ##???????????? | | ?????????????????#@ g % #????????????? | | ?????????????????# #????????????? | | ????????????????# #???????????? | | ????????????????# ### #??????????? | | ????????????????# ##?# ?????????? | | ???????????????? #??? ???????? | | ??????????????? #??? ## #???????? | | ?????????????? ##???? ##??#???????? | | ????????????? ##????? #???????????? | | ???????????? # ??????? ##???????????? | | ??????????? # ???????# ##????????????? | | ???????????? # ???????? ??????????????? | | ????????????? ## ???????????????????????? | | ????????????? #?# ???????????????????????? | | ????????????????? $???????????????????????? | | ????????????????? ???????????????????????? | | ??????????????????????????????????????????? | | ??????????????????????????????????????????? | | ??????????????????????????????????????????? | | ??????????????????????????????????????????? | | ??????????????????????????????????????????? | | ??????????????????????????????????????????? | | ??????????????????????????????????????????? | | ??????????????????????????????????????????? | | ??????????????????????????????????????????? | +----------------------------------------------------+ Best States ------------- Heat Dissipation 25 Energy Generation 10 Energy Capacity 250 Matter Stores 300 Matter Capacity 300 Sight Range 16 Terrain Scan Range 16 Terrain Scan Density 10 Evasion (%) 50 Recoil Reduction 2 Item Schematics ----------------- None Robot Schematics ------------------ None Fabricated ------------ Nothing Repaired ---------- Nothing Alien Tech Used ----------------- None Achievements -------------- Let's See Who's Tougher Challenges ------------ None Game ------ Seed CloakingDamperPlatform Manual? 0 Play Time 00:13:33 Cumulative 17.2 hours Start 2025.10.06 @ 12:39:05 End 2025.10.06 @ 13:03:19 Sessions 1 Manual Loads 0 Difficulty Rogue Special Mode None Game No. 19 Rogue 19 Adventurer 0 Explorer 0 Win Type - Total 0 Types 0/0/0/0/0/0/0/0/0/0 Lore% 9 Gallery% 12 Achievement% 15 Wizard Run 0 Options --------- Layout 2 ASCII 0 Keyboard 0 Movement Numpad Keybinds 0 Fullscreen 2 Font 24/Terminus Map View 50x44 Zoom Use 0% Tactical HUD 1 Map Filters NONE Filters NONE Steam 1 RUN: 6aea776a-e65b-4447-8ff4-95c0a6840002